Cogmind - Beta 15 @@@ ROGUE MODE // 2025.09.23 @ 19:21:26 Player: luka.null Result: Destroyed by HD-YWP(R) with Subdweller Beam Cannon Performance ------------- Evolutions (0) 0 Regions Visited (2) 400 Robots Destroyed (18) 90 Value Destroyed (482) 482 Prototype IDs (0) 0 Alien Tech Used (0) 0 Bonus (-122) -122 TOTAL SCORE: 850 Bonus ------- Friendly Fire -122 Cogmind --------- Core Integrity 0/250 Matter 265/300 Energy 94/125 System Corruption 2% Temperature Cool (9) Movement Treading (240) Ox1 Location -10/Subcaves Parts ------- > --- POWER (1) -------- Light Ion Engine > --- PROPULSION (2) --- Light Treads > --- UTILITY (2) ------ Large Storage Unit > --- WEAPON (2) ------- Medium Laser Small Laser > --- INVENTORY (15) --- Light Ion Engine Light Ion Engine Light Nuclear Core Improved Heat Sink Targeting Computer Scrap Shield Small Laser Small Laser Grenade Launcher Peak State ------------ > --- POWER ------------ Light Ion Engine > --- PROPULSION ------- Light Treads Light Treads > --- UTILITY ---------- Medium Storage Unit Hardened Light Armor Plating > --- WEAPON ----------- Medium Laser Small Laser > --- INVENTORY -------- Light Ion Engine Light Nuclear Core Improved Heat Sink Targeting Computer Small Laser Grenade Launcher [Rating: 9] Favorites ----------- Power Light Ion Engine Engine Light Ion Engine Propulsion Light Treads Treads Light Treads Utility Hardened Light Armor Plating Device Heat Sink Storage Medium Storage Unit Protection Hardened Light Armor Plating Weapon Medium Laser Energy Gun Medium Laser Launcher Grenade Launcher Build | -11 -10 -10 ------- Run | Yrd Mat Sub Slots Evolved . | . . . Power . | . . . Propulsion . | . . . Utility . | . . . Weapon . | . . . Parts Attached 17 | 6 9 2 Power 4 | 1 2 1 Engine 4 | 1 2 1 Core . | . . . Reactor . | . . . Propulsion 2 | 2 . . Treads 2 | 2 . . Leg . | . . . Wheel . | . . . Hover . | . . . Flight . | . . . Utility 5 | 1 4 . Device 1 | . 1 . Storage 3 | 1 2 . Processor . | . . . Hackware . | . . . Protection 1 | . 1 . Artifact . | . . . Weapon 6 | 2 3 1 Energy Gun 5 | 2 3 . Energy Cannon . | . . . Ballistic Gun . | . . . Ballistic Cannon . | . . . Launcher 1 | . . 1 Special Weapon . | . . . Impact Weapon . | . . . Slashing Weapon . | . . . Piercing Weapon . | . . . Special Melee Weapon . | . . . Unidentified Prototypes . | . . . Parts Lost 5 | . 1 4 Power 1 | . . 1 Propulsion 1 | . . 1 Utility 2 | . 1 1 Weapon 1 | . . 1 Highest Loss Streak 4 | . 1 4 To Critical Strikes . | . . . Average Backups 5 | . 4 10 Power 2 | . 1 3 Propulsion . | . . . Utility 1 | . 1 2 Weapon 2 | . 1 3 Tool/Special . | . . . Unused Backups 4 | . . 4 Power 1 | . . 1 Propulsion . | . . . Utility 3 | . . 3 Weapon . | . . . Tool/Special . | . . . Average Slot Usage (%) 96 | . 97 96 Engine 13 | . 14 13 Treads 27 | . 27 25 Device 3 | . 4 . Storage 14 | . 14 14 Protection 8 | . 7 12 Energy Gun 27 | . 28 27 Peak Build Rating 9 | 6 9 9 Average Rating 7 | 4 7 8 On Entrance 5 | . 6 9 Naked Turns . | . . . Heaviest Build 33 | 11 33 33 Greatest Support 40 | 40 40 40 Greatest Overweight (x) 1 | . . 1 Average Overweight (x) . | . . . Largest Inventory Capacity 15 | 8 15 15 Average Capacity 11 | 7 10 15 Most Carried 12 | 1 10 12 Average Carried 5 | . 4 11 Final Capacity 15 | 8 15 15 Final Carried 10 | 1 10 10 Class Distribution -------------------- 100% | Mutant Dominant Class ---------------- Mutant | -10/Materials Mutant | -10/Subcaves Resources | -11 -10 -10 ----------- Run | Yrd Mat Sub Matter Collected 380 | 224 156 . Remotely . | . . . Salvage Created 760 | . 649 111 Parts 34 | . 26 8 Haulers Intercepted . | . . . Recyclers Shooed 3 | . 3 . Parts Field Recycled . | . . . Retrieved Matter . | . . . Parts Self-Destructed 1 | . . 1 Prevented . | . . . Kills | -11 -10 -10 ------- Run | Yrd Mat Sub Combat Hostiles Destroyed 15 | . 14 1 Guns 13 | . 12 1 Classes Destroyed 5 | . 3 2 Recycler 2 | . 2 . Swarmer 3 | . 3 . Grunt 11 | . 11 . Subdweller 1 | . . 1 Guerrilla 1 | . . 1 Best Kill Streak 2 | . 2 1 Combat Bots Only 2 | . 2 1 Max Kills in Single Turn 2 | . 1 2 Gunslinging . | . . . Exploded . | . . . Melee . | . . . Uniques/NPCs Destroyed . | . . . Combat | -11 -10 -10 -------- Run | Yrd Mat Sub Hostile Shots Fired 107 | . 67 40 Missed 34 | . 23 11 Hits 73 | . 44 29 Projectile 73 | . 44 29 Critical Strikes 1 | . 1 . Damage Taken 1291 | . 539 752 Core 268 | . 59 209 Absorbed by Shields . | . . . Regen/Repaired (Parts) 97 | . 97 . Core Remaining (%) 100 | 100 . . Volleys Fired 57 | . 47 10 Largest 2 | . 2 2 Hottest 100 | . 100 100 Shots Fired 113 | . 93 20 Gun 112 | . 93 19 Cannon . | . . . Launcher 1 | . . 1 Special . | . . . Kinetic . | . . . Thermal 112 | . 93 19 Explosive 1 | . . 1 Electromagnetic . | . . . Robot Hit Streak 11 | . 8 11 Robot Miss Streak 3 | . 3 1 Penetration Max . | . . . Secondary Targets 2 | . 1 1 Max Gunslinging Chain 1 | . 1 1 Shots Hit Robots 78 | . 63 15 Core Hits 40 | . 29 11 Critical Kills . | . . . Critical Parts Destroyed . | . . . Critical Strikes 5 | . 4 1 Burn 5 | . 4 1 Melee Attacks . | . . . Impact . | . . . Slashing . | . . . Piercing . | . . . Sneak Attacks . | . . . Combat Hostiles . | . . . Follow-up Attacks . | . . . Damage Inflicted 1040 | . 761 279 Guns 955 | . 743 212 Cannons . | . . . Explosions 67 | . . 67 Melee . | . . . Ramming 18 | . 18 . Kinetic . | . . . Thermal 955 | . 743 212 Explosive 67 | . . 67 Electromagnetic . | . . . Impact . | . . . Slashing . | . . . Piercing . | . . . Highest Corruption 2 | . 2 2 Average Corruption 1 | . 1 2 Corruption Purged . | . . . Corruption Blocked . | . . . Effects 12 | . 7 5 Message Errors 1 | . . 1 Matter Fused 2 | . 2 . Energy Discharges 6 | . 3 3 Data Loss (minor) 1 | . 1 . Data Loss (major) 1 | . . 1 Weapon Failures 1 | . 1 . Overload Shots . | . . . Overflow Damage . | . . . Projectiles . | . . . Explosions . | . . . Melee . | . . . Knockbacks 1 | . 1 . Impact 1 | . 1 . Kinetic . | . . . Secondary . | . . . Self-Inflicted Damage . | . . . Shots . | . . . Rammed 3 | . 3 . Targets Rammed 4 | . 4 . Kicked . | . . . Crushed 1 | . 1 . Highest Temperature 216 | . 216 18 Average Temperature 64 | . 68 10 Received Heat Transfer 480 | . 294 186 Siege Activations . | . . . Martial Activations . | . . . Shielding Activations . | . . . Robots Disrupted . | . . . Combat Hostiles . | . . . Robots Corrupted . | . . . Combat Hostiles . | . . . Parts Fried . | . . . Impact Corruptions . | . . . Robots Melted 2 | . 2 . Combat Hostiles 2 | . 2 . Parts Melted 5 | . 5 . Heat Transferred 2923 | . 2279 644 Parts Sabotaged . | . . . Parts Stolen . | . . . Parts Stripped . | . . . Power Chain Reactions . | . . . Alert | -11 -10 -10 ------- Run | Yrd Mat Sub Maximum Alert Level . | . . . Low Security (%) 100 | 100 100 . Level 1 . | . . . Level 2 . | . . . Level 3 . | . . . Level 4 . | . . . Level 5 . | . . . High Security . | . . . Max Security . | . . . Peak Influence 69 | . 69 . Initial . | . . . Average 16 | . 18 . Influence Increases 409 | . 409 . Destroy 0b10 Robot/C 280 | . 280 . Destroy 0b10 Robot/NC 10 | . 10 . Destroy Leader 60 | . 60 . Successful Hack 14 | . 14 . Lose Combat Pursuer 45 | . 45 . Influence Decreases 409 | . 344 65 Entered New Map 32 | . . 32 Time Decay 367 | . 334 33 Lost Part 10 | . 10 . Squads Dispatched 3 | . 3 . Investigation 1 | . 1 . Extermination . | . . . Reinforcement 2 | . 2 . Assault . | . . . Garrison . | . . . Intercept . | . . . Searches Triggered . | . . . Construction Impeded . | . . . Haulers Reinforced . | . . . Active Scanning Responses . | . . . Cargo Convoy Interrupts . | . . . Stealth | -11 -10 -10 --------- Run | Yrd Mat Sub Distress Signals . | . . . Communications Jammed . | . . . Distress Signals . | . . . Times Spotted 37 | . 29 8 Peak Tracking Total 8 | . 4 8 Tactical Retreats 3 | . 3 . Traps | -11 -10 -10 ------- Run | Yrd Mat Sub Traps Triggered 3 | . 3 . Indirectly . | . . . Trap Hack Attempts . | . . . Triggered . | . . . Disarmed . | . . . Reprogrammed . | . . . Reused . | . . . Traps Extracted . | . . . Installed . | . . . Triggered . | . . . Machines | -11 -10 -10 ---------- Run | Yrd Mat Sub Machines Disabled . | . . . Max in Single Turn . | . . . Machines Repaired . | . . . Machines Dismantled . | . . . Machines Sabotaged . | . . . Overloaded Fab Kills . | . . . Hacking | -11 -10 -10 --------- Run | Yrd Mat Sub Machines Accessed 4 | . 4 . Terminals 2 | . 2 . Fabricators . | . . . Repair Stations 1 | . 1 . Recycling Units 1 | . 1 . Scanalyzers . | . . . Garrison Access . | . . . Total Hacks 15 | . 15 . Successful 6 | . 6 . Failed 9 | . 9 . Catastrophic . | . . . Database Lockouts . | . . . Manual 2 | . 2 . Terminals 8 | . 8 . Fabricators . | . . . Repair Stations 5 | . 5 . Recycling Units 2 | . 2 . Scanalyzers . | . . . Garrison Access . | . . . Terminal Hacks 2 | . 2 . Robot Analysis 1 | . 1 . Zone Layout 1 | . 1 . Fabricator Hacks . | . . . Repair Station Hacks 2 | . 2 . Scan Component 1 | . 1 . Repair 1 | . 1 . Recycling Unit Hacks 2 | . 2 . Report Inventory 1 | . 1 . Retrieve Components 1 | . 1 . Scanalyzer . | . . . Garrison Access Hacks . | . . . Unauthorized Hacks . | . . . Terminals . | . . . Fabricators . | . . . Repair Stations . | . . . Recycling Units . | . . . Scanalyzers . | . . . Garrison Access . | . . . Data Cores Recovered . | . . . Used . | . . . Hacking Detections 3 | . 3 . Full Trace Events 2 | . 2 . Feedback Events . | . . . Feedback Blocked . | . . . Robot Schematics Acquired . | . . . Robots Built . | . . . Authchips . | . . . Time . | . . . Total Robot Build Rating . | . . . Part Schematics Acquired . | . . . Parts Built . | . . . Authchips . | . . . Time . | . . . Total Part Build Rating . | . . . Parts Repaired 1 | . 1 . Time 26 | . 26 . Parts Recycled . | . . . Recycled Matter . | . . . Retrieved Matter . | . . . Retrieved Components 1 | . 1 . Parts Scanalyzed . | . . . Part Schematics Acquired . | . . . Parts Damaged . | . . . Bothacking | -11 -10 -10 ------------ Run | Yrd Mat Sub Used RIF Installer . | . . . Robots Hacked . | . . . Non-combat . | . . . Combat . | . . . Robot Hacks Applied . | . . . Relay Couplers Released . | . . . Fabnet Peak Effective % . | . . . Robots Rewired . | . . . Allies Hacked . | . . . Hacks Repelled . | . . . Allies | -11 -10 -10 -------- Run | Yrd Mat Sub Total Allies . | . . . Largest Group . | . . . Highest-Rated Group . | . . . Highest-Rated Ally . | . . . Total Orders . | . . . Ally Attacks . | . . . Total Damage . | . . . Kills . | . . . Allies Corrupted . | . . . Allies Melted . | . . . Intel | -11 -10 -10 ------- Run | Yrd Mat Sub Active Infowar (turns) . | . . . Robot Analysis Total 1 | . 1 . Derelict Logs Recovered 2 | . . 2 Drone Launches . | . . . Drone Recoveries . | . . . Exploration | -11 -10 -10 ------------- Run | Yrd Mat Sub Turns Passed 1740 | 117 1376 247 Spaces Moved 868 | 72 665 131 Core 6 | 6 . . Treads 862 | 66 665 131 Legs . | . . . Wheels . | . . . Hover . | . . . Flight . | . . . Fastest Speed 50 | 50 160 160 Average Speed 159 | 150 160 161 Slowest Speed 240 | 160 160 240 Overloaded Moves . | . . . Propulsion Burnouts . | . . . Robots Hopped . | . . . Potential Cave-ins . | . . . Cave-ins Triggered . | . . . Exploration Rate (%) 30 | 4 76 10 Regions Visited 2 Branch Regions 1 Pre-discovered Areas 1 | . . 1 Known Exits Taken . | . . . Unknown Exits Taken 2 | 1 1 . Scrap Searched . | . . . Spaces Dug . | . . . Terrain Destroyed 5 | . . 5 Melee . | . . . Projectile . | . . . AOE 5 | . . 5 Terrain Rammed . | . . . Walls Destroyed . | . . . Machines Disabled . | . . . Actions | -11 -10 -10 --------- Run | Yrd Mat Sub Total 1101 | 78 877 146 Wait 142 | . 142 . Move 866 | 71 664 131 Hop . | . . . Pick Up 9 | 1 7 1 Fast Attach 8 | 6 2 . Attach 3 | . 1 2 Detach . | . . . Swap 10 | . 8 2 Drop 2 | . 2 . Fire 57 | . 47 10 Melee . | . . . Ram . | . . . Kick . | . . . Crush 4 | . 4 . Escape Stasis . | . . . Rewire . | . . . Trap . | . . . Miscellaneous . | . . . Route ------- -11/Scrapyard -10/Materials (discovered 5 exits: [*Mat x2] / [*Min x2] / [*Sub]) -10/Subcaves (discovered 1 exit: [*Mat]) History --------- Turn | Location | Event 11 | -11/Scrapyard | Discovered new exit (range 15) 118 | -11/Scrapyard | Entered Materials 305 | -10/Materials | Build established: Mutant 393 | -10/Materials | Discovered new exit (range 16) 492 | -10/Materials | Discovered new exit (range 3) 1006 | -10/Materials | Repaired Lgt. Treads 1089 | -10/Materials | Discovered new exit (range 8) 1446 | -10/Materials | Discovered new exit (range 5) 1456 | -10/Materials | Discovered new exit (range 7) 1494 | -10/Materials | Entered Subcaves 1515 | -10/Subcaves | Learned location of Storage (-9) 1627 | -10/Subcaves | Discovered new exit (range 7) 1695 | -10/Subcaves | Ambushed by swarm of Subdwellers 1695 | -10/Subcaves | Ambushed by Subdwellers from Twisted Machinery 1723 | -10/Subcaves | Core integrity fell below 50% 1727 | -10/Subcaves | Core integrity fell below 20% 1741 | -10/Subcaves | Destroyed by HD-YWP(R) with Subdweller Beam Cannon Last Messages --------------- 01711_ U7-X4J(h) destroyed. [Achievement: Backstab] 01712_ VN-LZI(R) affixes Scrap Shield Fragment to Scrap Shield. 01713_ BD-NMO(R) destroyed. 01714_ Subatomizers dissect the Imp. Heat Sink. 01717_ VN-LZI(R) suffers critical hit (Burn). 01717_ VN-LZI(R) affixes Scrap Shield Fragment to Scrap Shield. 01718_ MB-GF8(R) destroyed. 01723_ BC-AJF(R) affixes Scrap Shield Fragment to Scrap Shield. 01724_ Med. Laser destroyed. 01724_ Hrd. Light Armor Plating destroyed. 01728_ Ion Engine destroyed. 01732_ System corrupted: Substantial component data lost. 01736_ HD-YWP(R) affixes Scrap Shield Fragment to Scrap Shield. 01737_ VN-LZI(R) destroyed. 01741_ Subatomizers dissect the Sub. Monowheel. Map ----- +----------------------------------------------------+ | ???????### #####??????????????????????????? | | ?????????## ###????????????????????????? | | ??????????#### #????????????????????????? | | ?????????##### #????????????????????????? | | ?????????# ##????????????????????????? | | ?????????# ##????????##???????????????? | | ?????????## ## ##????????"#???????????????? | | ????###???##?## #???????# #???????????????? | | ???## ##????## ##??????? ????????????????? | | ???# ###### ## #???####? #????????????????? | | ??## ###?# ##??## ## ####?????????????? | | ??# ##????###### " " #?????????????? | | ??# ###??????# #?????????????? | | ??### #?######## ### #?????????????? | | ????### ##### # # #?## #?????????????? | | ####### ##### #??# #?????????????? | | ### " #?## ##?????????????? | | ## # ###?# ##??????????????? | | # ######???## # ##??#???????????? | | ## #### ###" #????????# # ????????????? | | ?###??# ####?#"" ###??????## ! ## #?????????????? | | ??????###????# "## ##????# %![ ##?????????????? | | ?????????????# "" ##### =! % #??????????????? | | ????????????? <""u ## [%=*%##?????????????? | | ????????????? """"""""""##[&!*g& "# "" ???????? | | ????????????? "" @R!%!%%* "" """????????? | | ???????????? "" R=###=[ % """???????? | | ???????????? "" #??# ###### " ???????? | | ????????????# ### " ##???##??????? ???????? | | ????????????##????##########?????????????????????? | | ?????????????????????????????????????????????????? | | ?????????????????????????????????????????????????? | | ?????????????????????????????????????????????????? | | ?????????????????????????????????????????????????? | | ?????????????????????????????????????????????????? | | ?????????????????????????????????????????????????? | | ?????????????????????????????????????????????????? | | ?????????????????????????????????????????????????? | | ?????????????????????????????????????????????????? | | ?????????????????????????????????????????????????? | | ?????????????????????????????????????????????????? | | ?????????????????????????????????????????????????? | | ?????????????????????????????????????????????????? | | ?????????????????????????????????????????????????? | | | | | | | | | | | | | +----------------------------------------------------+ Best States ------------- Heat Dissipation 35 Energy Generation 10 Energy Capacity 250 Matter Stores 300 Matter Capacity 300 Sight Range 16 Terrain Scan Density 10 Armor Coverage 150 Evasion (%) 40 Recoil Reduction 2 Item Schematics ----------------- None Robot Schematics ------------------ None Fabricated ------------ Nothing Repaired ---------- Lgt. Treads | 30% | -10/Materials Alien Tech Used ----------------- None Achievements -------------- Backstab Challenges ------------ None Game ------ Seed EncryptedSpliceComputer Manual? 0 Play Time 00:17:06 Cumulative 12.9 hours Start 2025.09.23 @ 18:57:00 End 2025.09.23 @ 19:21:26 Sessions 1 Manual Loads 0 Difficulty Rogue Special Mode None Game No. 10 Rogue 7 Adventurer 3 Explorer 0 Win Type - Total 0 Types 0/0/0/0/0/0/0/0/0/0 Lore% 9 Gallery% 10 Achievement% 13 Wizard Run 0 Options --------- Layout 1 ASCII 0 Keyboard 0 Movement Vi Keybinds 0 Fullscreen 0 Font 20/Terminus Map View 64x48 Zoom Use 0% Tactical HUD 1 Map Filters NONE Filters NONE Steam 1 RUN: b290f621-8ab0-470e-ba25-b35d112b236e